bitfinex/quotes_ETHUSD_20241130
["timestamp","ask_amount","ask_price","bid_price","bid_amount"]
[1732943430221,0.02733733,3646.5,3646.1,1.6115]
[1732943430405,0.55,3646.6,3646.4,2.74237]
[1732943431110,0.55,3646.6,3646.5,2.74235]
[1732943432823,0.55,3647.2,3646.5,2.74235]
[1732943432986,0.02733733,3647.1,3646.6,2.74221]
[1732943434385,0.02733733,3647.1,3646.3,2.74249]
[1732943434386,0.02733733,3647.1,3646.4,2.74236]
[1732943434780,0.02733733,3647.1,3646.5,2.74234]
[1732943435526,0.02733733,3647.1,3646.6,2.74226]
[1732943435724,0.02733733,3647.2,3646.6,2.74226]
[1732943436019,0.02733733,3647.2,3646.7,2.74213]
[1732943436687,0.57733733,3647.2,3646.5,2.7423]
[1732943436889,0.57733733,3647.2,3646.4,2.74241]
[1732943437085,0.02733733,3647.2,3646.4,2.74241]
[1732943437285,0.02733733,3647.2,3646.1,1.6115]
[1732943437286,0.55,3647.0,3646.1,1.6115]
[1732943437499,0.02733733,3646.9,3646.5,2.74229]
[1732943438128,0.02733733,3647.0,3646.5,2.74229]
[1732943438486,0.02733733,3647.0,3646.6,2.74221]
[1732943438797,0.02733733,3647.2,3646.6,2.74221]
[1732943439335,0.02733733,3647.2,3646.7,2.74216]
[1732943439502,0.55,3647.1,3646.7,2.74216]
[1732943439708,0.02733733,3647.0,3646.7,2.74216]
[1732943439916,0.02733733,3647.2,3646.7,2.74216]
[1732943440537,0.02733733,3647.2,3646.5,2.7423]
[1732943440901,0.02733733,3647.2,3646.6,2.74226]
[1732943441100,0.55,3647.1,3646.6,2.74226]
[1732943441343,0.02733733,3647.0,3646.6,2.74226]
[1732943441505,0.02733733,3647.2,3646.6,2.74226]
[1732943442130,0.55,3647.3,3646.7,2.74215]
[1732943443046,3.29176,3647.3,3646.7,2.74215]
[1732943443202,0.25594758,3647.2,3646.7,2.74215]
[1732943443399,3.29176,3647.3,3646.7,2.74215]
[1732943443603,0.55,3647.1,3646.7,2.74215]
[1732943443828,3.29176,3647.3,3646.5,2.7423]
[1732943444067,0.55,3647.1,3646.6,2.74222]
[1732943444409,3.29182,3647.2,3646.5,2.74235]
[1732943444613,0.55,3647.0,3646.5,2.74235]
[1732943444851,0.02733733,3647.1,3646.5,2.74235]
[1732943445032,0.55,3646.9,3646.5,2.74235]
[1732943445350,0.02733733,3647.1,3646.5,2.74235]
[1732943445563,0.55,3646.9,3646.5,2.74235]
[1732943446045,0.57733733,3647.1,3646.5,2.74235]
[1732943446247,0.25640576,3647.0,3646.5,2.74235]
[1732943446412,0.57733733,3647.1,3646.5,2.74235]
[1732943446615,0.55,3646.9,3646.5,2.74235]
[1732943447157,0.55,3647.1,3646.3,2.74249]
[1732943447341,0.55,3646.9,3646.6,2.74227]
[1732943447547,0.55,3646.9,3646.7,2.74218]
[1732943447749,0.55,3647.2,3646.7,2.74218]
[1732943447928,0.25648174,3647.1,3646.7,2.74218]
[1732943448133,0.80648174,3647.0,3646.5,2.7423]
[1732943448362,2.74185,3647.2,3646.5,2.7423]
[1732943448363,0.55,3647.1,3646.5,2.7423]
[1732943448525,0.25648335,3647.0,3646.5,2.7423]
[1732943448720,0.55,3647.1,3646.5,2.7423]
[1732943448916,0.25651431,3647.0,3646.5,2.7423]
[1732943449121,0.55,3647.1,3646.5,2.7423]
[1732943449347,0.55,3646.9,3646.5,2.7423]
[1732943449860,0.55,3647.0,3646.5,2.7423]
[1732943450364,0.55,3647.2,3646.6,2.74227]
[1732943450525,2.74176,3647.3,3646.6,2.74227]
[1732943450526,0.25651045,3647.1,3646.6,2.74227]
[1732943450721,0.80651045,3647.0,3646.6,2.74227]
[1732943450984,0.55,3647.1,3646.6,2.74227]
[1732943451154,0.55,3646.9,3646.6,2.74227]
[1732943451464,0.55,3646.9,3646.7,2.74219]
[1732943451924,0.55,3646.9,3646.8,2.74213]
[1732943452562,0.55,3647.2,3646.8,2.74213]
[1732943452863,2.74228,3646.6,3646.2,0.02741998]
[1732943453020,0.55,3646.5,3645.8,1.5516]
[1732943453221,0.55,3646.3,3645.5,4.29469]
[1732943453525,0.55,3646.3,3645.8,2.74287]
[1732943454173,2.56585809,3646.4,3645.8,2.74287]
[1732943455955,0.02733733,3646.5,3645.8,3.446619]
[1732943456141,0.02733733,3646.5,3645.9,2.74279]
[1732943456334,0.55,3646.5,3645.9,2.74279]
[1732943456582,0.57733733,3646.5,3645.9,2.74279]
[1732943456766,2.74247,3646.4,3645.8,0.703749]
[1732943456965,2.74247,3646.4,3645.8,2.74286]
[1732943458521,2.74251,3646.3,3645.6,2.74302]
[1732943458977,2.74251,3646.3,3645.5,1.5516]
[1732943459281,4.31019477,3647.3,3645.7,1.5516]
[1732943459482,2.74226,3646.7,3646.0,2.74271]
[1732943459643,2.74226,3646.7,3646.1,0.548559]
[1732943460096,2.74228,3646.6,3646.1,0.548559]
[1732943460266,2.74222,3646.7,3646.1,3.291149]
[1732943460788,2.74222,3646.7,3646.1,0.548559]
[1732943460951,0.57733733,3646.8,3646.0,2.7427]
[1732943461153,0.25642856,3646.6,3646.0,2.7427]
[1732943461391,3.31947733,3646.8,3646.2,2.74258]
[1732943461691,2.76954733,3646.7,3646.1,2.74264]
[1732943462061,0.02733733,3646.7,3646.2,2.74257]
[1732943462316,0.02733733,3646.8,3645.9,2.7428]
[1732943462459,0.02733733,3646.8,3646.1,2.7426]
[1732943462660,0.02733733,3646.8,3646.2,2.74257]
[1732943462861,0.25645415,3646.7,3646.2,2.74257]
[1732943463082,0.25645415,3646.6,3646.2,2.74257]
[1732943463292,0.25645415,3646.6,3646.4,1.5516]
[1732943463505,0.55,3647.0,3646.5,2.74235]
[1732943463680,0.25645682,3646.9,3646.4,1.5516]
[1732943463972,3.29198,3647.0,3646.4,1.5516]
[1732943464160,0.28379746,3646.9,3646.4,1.5516]
[1732943464577,0.02733733,3646.9,3646.4,1.5516]
[1732943464782,3.29198,3647.0,3646.4,4.723435]
[1732943464989,0.28382831,3646.9,3646.4,4.723435]
[1732943465187,0.02733733,3646.9,3646.4,4.723435]
[1732943465364,3.29198,3647.0,3646.4,4.723435]
[1732943465575,0.55,3647.0,3646.4,4.723435]
[1732943465797,3.29181,3647.3,3646.5,0.4723435]
[1732943465966,0.55,3647.1,3646.5,0.4723435]
[1732943466308,0.55,3647.3,3646.5,0.4723435]
[1732943466466,0.55,3647.0,3646.5,0.4723435]
[1732943466803,1.14082833,3647.9,3647.3,2.74169]
[1732943467114,0.25661842,3647.8,3647.2,2.74181]
[1732943467267,9.53489248,3648.2,3646.8,1.6184]
[1732943467475,2.74154,3647.6,3646.5,1.6184]
[1732943467807,2.74173,3647.4,3646.7,2.74219]
[1732943467976,0.55,3647.2,3646.7,2.74219]
[1732943468163,0.55,3647.3,3646.7,2.74219]
[1732943468364,0.25645623,3647.2,3646.7,2.74219]
[1732943468680,0.55,3647.5,3646.7,2.74219]
[1732943468900,0.55,3647.2,3646.7,2.74219]
[1732943469401,2.74154,3647.6,3646.5,1.6184]
[1732943469402,0.55,3647.5,3646.5,1.6184]
[1732943469569,0.55,3647.3,3646.7,2.74216]
[1732943469770,0.55,3647.3,3646.8,2.74207]
[1732943469970,1.14082833,3647.9,3646.8,2.74207]
[1732943469971,0.55,3647.4,3646.8,2.74207]
[1732943470203,0.55,3647.3,3646.8,2.74207]
[1732943470508,4.14082833,3648.0,3647.1,2.74187]
[1732943470710,2.74138,3647.8,3647.1,2.74187]
[1732943470885,0.25650122,3647.7,3647.1,2.74187]
[1732943471088,0.28383855,3647.6,3647.1,2.74187]
[1732943471287,0.25650122,3647.5,3647.1,2.74187]
[1732943471480,0.25647418,3647.4,3647.1,2.74187]
[1732943471673,2.74147,3647.7,3647.1,2.74187]
[1732943471873,0.25647322,3647.6,3647.1,2.74187]
[1732943472206,0.25647322,3647.5,3646.9,2.742]
[1732943472376,0.25644773,3647.4,3646.9,2.742]
[1732943472576,0.57733733,3647.6,3646.8,2.74212]
[1732943472781,3.29174,3647.4,3646.7,2.7422]
[1732943472974,0.55,3647.2,3646.7,2.7422]
[1732943473170,3.29174,3647.4,3646.7,2.7422]
[1732943473410,0.55,3647.2,3646.7,2.7422]
[1732943473613,3.29174,3647.4,3646.7,2.7422]
[1732943473824,0.55,3647.2,3646.8,2.74212]
[1732943473988,0.41030817,3647.6,3647.0,2.74194]
[1732943474322,0.55489248,3648.2,3647.3,1.525]
[1732943474521,0.256429,3648.1,3647.8,2.74133]
[1732943474679,1.83563282,3648.5,3647.8,2.74133]
[1732943474680,0.4102864,3648.4,3647.8,2.74133]
[1732943474877,0.66671881,3648.3,3647.8,2.74133]
[1732943475073,0.25643241,3648.2,3647.7,2.59890017]
[1732943475399,0.25643241,3648.1,3647.4,2.74167]
[1732943475603,0.25643241,3648.0,3647.5,2.7416]
[1732943475787,2.74108,3648.2,3647.6,2.7415]
[1732943475986,0.25631096,3648.1,3647.6,2.7415]
[1732943476317,0.41010661,3648.3,3647.4,2.74167]
[1732943476318,0.25631096,3648.0,3647.7,2.74143]
[1732943476477,0.55,3648.2,3647.7,2.74143]
[1732943476811,0.28355682,3648.1,3647.4,2.74167]
[1732943477011,0.57733733,3648.2,3647.6,2.74152]
[1732943477214,0.25624324,3648.1,3647.6,2.74152]
[1732943477391,0.57733733,3648.2,3647.6,2.74152]
[1732943477587,0.25616863,3648.1,3647.6,2.74152]
[1732943477795,0.57733733,3648.2,3647.6,2.74152]
[1732943478114,0.25617037,3648.1,3647.6,2.74152]
[1732943478311,0.41010661,3648.4,3647.3,1.525]
[1732943478312,0.55,3648.0,3647.3,1.525]
[1732943478688,0.55,3648.3,3647.4,2.74167]
[1732943478879,0.28345451,3648.2,3647.6,2.7415]
[1732943479211,0.25611718,3648.1,3647.6,2.7415]
[1732943479413,0.02733733,3648.2,3647.6,2.7415]
[1732943479618,0.55,3648.4,3647.7,2.74138]
[1732943479775,0.55,3648.2,3647.7,2.74138]
[1732943479975,0.55,3648.4,3647.8,2.74136]
[1732943480223,0.55,3648.2,3647.8,2.74136]
[1732943480578,0.80597822,3648.4,3647.8,2.74136]
[1732943480792,0.55,3648.4,3647.8,2.74136]
[1732943481612,2.76834733,3648.3,3647.6,2.7415]
[1732943481822,0.55,3648.2,3647.6,2.7415]
[1732943481996,0.55,3648.3,3647.3,1.525]
[1732943482314,0.55,3648.4,3647.9,2.74129]
[1732943482523,0.80587101,3648.4,3647.9,2.74129]
[1732943483118,0.80587101,3648.4,3647.7,2.74139]
[1732943483504,0.80587101,3648.4,3647.6,2.74149]
[1732943483718,0.80587101,3648.4,3647.8,2.74135]
[1732943484222,3.54680101,3648.4,3647.6,2.74149]
[1732943484425,0.55,3647.9,3647.2,2.74177]
[1732943484715,3.29131,3647.9,3647.2,2.74177]
[1732943484943,0.55,3647.7,3647.0,2.74197]
[1732943485114,0.55,3647.7,3647.1,2.74189]
[1732943485515,2.74146,3647.7,3647.1,2.74189]
[1732943485956,0.55,3647.6,3647.1,2.74189]
[1732943486847,3.29131,3647.9,3647.2,2.74177]
[1732943487147,0.55,3648.0,3647.1,0.02741625]
[1732943487349,3.29114,3648.2,3647.5,2.74153]
[1732943487647,0.55,3648.0,3647.5,2.74153]
[1732943487853,0.55,3648.0,3647.3,2.74173]
[1732943487854,0.55,3647.9,3647.3,2.74173]
[1732943490211,2.7413,3647.9,3647.3,2.74173]
[1732943490456,0.55,3647.8,3647.3,2.74173]
[1732943490625,0.55,3647.8,3646.0,0.1]
[1732943490626,0.02733733,3647.7,3646.4,2.74241]
[1732943490830,2.7419,3647.1,3646.5,2.74235]
[1732943491014,0.55,3647.0,3646.5,2.74235]
[1732943491711,0.02733733,3646.9,3646.5,2.74235]
[1732943491917,2.7419,3647.1,3646.5,2.74235]
[1732943492147,0.57733733,3647.0,3646.5,2.74235]
[1732943492856,2.76931733,3647.0,3646.3,4.30127]
[1732943493026,0.55,3646.9,3646.4,2.74242]
[1732943494161,0.55,3646.9,3645.7,1.5588]
[1732943494457,0.55,3646.6,3646.1,2.7426]
[1732943497656,0.55,3646.8,3645.9,2.7428]
[1732943497952,0.55,3646.8,3646.2,2.74255]
[1732943498556,3.29213,3646.8,3646.2,2.74255]
[1732943500212,0.55,3646.8,3646.2,2.74255]
[1732943500415,3.29195,3647.1,3645.8,2.74288]
[1732943500640,3.29195,3647.1,3646.4,2.74236]
[1732943503417,3.29181,3647.3,3646.3,4.30129]
[1732943503687,0.55,3647.3,3646.3,4.30129]
[1732943503890,0.55,3647.0,3646.4,2.7424]
[1732943504291,0.55,3647.0,3645.8,1.5588]
[1732943504487,2.74218,3646.8,3646.0,2.74266]
[1732943504684,0.57733733,3646.7,3646.0,2.74266]
[1732943504889,0.02733733,3646.7,3646.0,2.74266]
[1732943505117,0.55,3646.6,3646.1,2.74265]
[1732943506813,0.55,3646.6,3646.0,2.74267]
[1732943507015,0.55,3646.6,3646.1,2.74264]
[1732943507602,0.55,3646.8,3646.1,2.74259]
[1732943507835,0.55,3646.7,3646.1,2.74259]
[1732943510802,3.29206,3646.9,3646.3,2.7425]
[1732943511002,0.55,3647.0,3646.3,2.7425]
[1732943511246,0.55,3646.8,3646.3,2.7425]
[1732943512705,0.55,3646.6,3646.1,2.74263]
[1732943513215,0.55,3646.4,3645.9,2.7428]
[1732943513417,0.55,3646.4,3645.7,2.74294]
[1732943513621,0.55,3645.6,3645.4,0.1587292]
[1732943513912,0.55,3645.5,3645.4,0.1587292]
[1732943514516,0.55,3645.7,3645.4,0.1587292]
[1732943514755,0.55,3645.8,3645.4,0.1587292]
[1732943514914,0.55,3645.7,3645.4,0.1587292]
[1732943516043,0.57733733,3645.7,3645.4,0.1587292]
[1732943517340,2.7431,3645.5,3645.4,0.1587292]
[1732943517506,3.2931,3645.5,3645.4,0.1587292]
[1732943517706,0.55,3645.5,3645.4,0.1587292]
[1732943518670,3.2931,3645.5,3645.4,0.1587292]
[1732943520637,0.55,3645.6,3645.4,0.1587292]
[1732943521219,0.55,3645.7,3645.4,0.1587292]
[1732943521447,0.55,3645.5,3645.4,0.1587292]
[1732943521943,0.55,3645.7,3645.4,0.1587292]
[1732943522108,2.88444967,3645.8,3645.4,0.1587292]
[1732943522109,0.55,3645.5,3645.4,0.1587292]
[1732943522303,3.2931,3645.5,3645.4,0.1587292]
[1732943523040,3.32043733,3645.5,3645.4,0.1587292]
[1732943523922,3.2931,3645.5,3645.4,0.1587292]
[1732943524446,3.32043733,3645.5,3645.4,0.1587292]
[1732943524766,3.2931,3645.5,3645.4,0.1587292]
[1732943526766,3.32043733,3645.5,3645.4,0.1587292]
[1732943527683,3.32043733,3645.5,3642.9,2.84504]
[1732943527684,2.74395,3644.4,3643.5,1.6107]
[1732943527964,2.74395,3644.4,3643.6,2.74446]
[1732943527965,0.55,3644.1,3643.6,2.74446]
[1732943528132,2.74395,3644.4,3643.7,2.74445]
[1732943528332,2.74395,3644.4,3643.6,2.74446]
[1732943528333,0.55,3644.2,3643.6,2.74446]
[1732943528564,0.55,3644.2,3643.7,2.74445]
[1732943528565,0.57733733,3644.2,3643.7,2.74445]
[1732943528772,3.0,3644.9,3644.0,2.74422]
[1732943529061,0.55,3644.5,3643.9,2.74426]
[1732943529380,0.55,3644.5,3643.6,2.10541291]
[1732943529666,3.29349,3645.0,3644.4,2.74393]
[1732943530021,0.54680207,3645.4,3644.3,1.6107]
[1732943530022,0.55,3645.1,3644.3,1.6107]
[1732943530223,0.55,3644.8,3644.3,4.35465]
[1732943531233,3.29344,3645.1,3644.3,4.35465]
[1732943531453,3.29344,3645.1,3644.4,2.74388]
[1732943531653,2.74351,3645.0,3644.4,2.74388]
[1732943531835,0.55,3644.9,3644.4,2.74388]
[1732943532224,0.55,3644.9,3644.3,1.6107]
[1732943532859,0.55,3644.9,3644.3,4.35466]
[1732943533059,0.55,3644.7,3644.1,2.74414]
[1732943533259,0.55,3644.7,3644.0,1.6107]
[1732943533260,0.55,3644.5,3644.0,4.35491]
[1732943533964,0.55,3644.5,3644.3,2.744]
[1732943534260,0.55,3644.7,3644.1,2.74409]
[1732943535434,3.29358,3644.9,3644.3,2.74401]
[1732943535631,0.55,3644.9,3644.3,2.744]
[1732943537267,0.55,3645.1,3644.4,2.74392]
[1732943537436,3.29346,3645.1,3644.3,2.74395]
[1732943537629,3.29346,3645.1,3644.0,2.320628]
[1732943537630,3.29346,3645.1,3644.4,2.74392]
[1732943537961,0.55,3644.9,3644.4,2.74392]
[1732943538325,3.0,3646.0,3644.5,1.6107]
[1732943538529,2.74288,3645.8,3645.1,2.74335]
[1732943538856,2.74288,3645.8,3645.2,2.74332]
[1732943539165,2.74288,3645.8,3644.9,2.74354]
[1732943539340,2.74288,3645.8,3645.0,2.74343]
[1732943539547,2.74295,3645.7,3645.0,2.74343]
[1732943539720,0.55,3645.6,3645.0,2.74343]
[1732943540425,0.55,3645.6,3645.0,2.74347]
[1732943542250,3.54889594,3645.6,3645.0,2.74347]
[1732943542451,3.29306,3645.6,3645.0,2.74347]
[1732943543325,0.55,3645.4,3645.0,2.74347]
[1732943543677,0.02733733,3645.4,3645.0,2.74347]
[1732943544227,0.57733733,3645.4,3645.0,2.74347]
[1732943544873,0.02733733,3645.4,3644.8,2.74363]
[1732943545239,0.57733733,3645.4,3644.8,2.74363]
[1732943547656,0.57733733,3645.4,3644.1,4.84950291]
[1732943547657,9.53,3645.7,3643.9,1.582]
[1732943547844,0.55,3645.0,3644.3,2.74395]
[1732943548050,3.29349,3645.0,3644.3,2.74395]
[1732943548258,0.55,3645.0,3644.4,2.74389]
[1732943548483,3.29338,3645.2,3644.4,2.74389]
[1732943548739,0.2561441,3645.1,3644.4,2.74389]
[1732943548864,0.8061441,3645.0,3644.4,2.74389]
[1732943549049,0.55,3645.0,3644.4,2.74389]
[1732943549754,0.55,3645.0,3644.5,2.74385]
[1732943549948,0.55,3645.0,3644.3,2.74395]
[1732943550492,0.02733733,3644.9,3644.4,2.74392]
[1732943550786,0.55,3645.2,3644.6,2.74378]
[1732943551557,0.55,3645.4,3644.8,2.74363]
[1732943551758,0.55,3645.2,3644.8,2.74363]
[1732943552266,2.74341,3645.1,3644.4,2.74392]
[1732943552506,0.55,3644.8,3644.3,2.74399]
[1732943552713,2.74376,3644.7,3644.1,2.74414]
[1732943552867,0.55,3644.6,3644.1,2.74414]
[1732943553068,0.55,3644.7,3644.1,2.74411]
[1732943553610,3.29371,3644.7,3644.1,2.74411]
[1732943553971,0.55,3644.7,3644.0,2.74423]
[1732943554176,0.55,3644.7,3644.1,2.7441]
[1732943554407,0.55,3644.9,3644.3,2.74399]
[1732943554608,0.25622366,3644.8,3644.3,2.74399]
[1732943554815,0.80622366,3644.7,3644.3,2.74399]
[1732943555114,0.02733733,3644.6,3643.1,2.14032518]
[1732943555281,0.55,3644.3,3643.7,2.74442]
[1732943555490,3.29401,3644.3,3643.7,2.74442]
[1732943555813,0.55,3644.3,3643.7,2.74442]
[1732943556111,0.55,3644.4,3644.1,2.7441]
[1732943556273,0.55,3644.4,3643.9,2.74429]
[1732943556472,0.55,3644.4,3643.8,2.74437]
[1732943557281,0.55,3644.4,3643.9,2.74431]
[1732943557882,0.57733733,3644.4,3643.9,2.74431]
[1732943558115,0.02733733,3644.4,3642.5,3.30120937]
[1732943558270,0.55,3643.7,3643.2,2.74482]
[1732943558475,0.55,3643.7,3643.3,2.74473]
[1732943558674,0.55,3643.7,3643.0,2.74492]
[1732943558917,0.55,3643.7,3643.1,2.74485]
[1732943560987,0.57733733,3643.6,3642.9,4.32705]
[1732943561189,0.55,3643.6,3643.0,2.74498]
[1732943561384,2.74455,3643.6,3643.0,2.74498]
[1732943561683,0.55,3643.5,3643.0,2.74498]
[1732943562209,0.55,3643.5,3643.1,1.371]
[1732943563792,0.55,3643.8,3643.1,1.371]
[1732943563940,2.74454,3643.6,3643.1,1.371]
[1732943564115,0.55,3643.5,3643.1,1.371]
[1732943564737,3.29445,3643.8,3643.1,1.371]
[1732943564932,0.55,3643.6,3643.1,1.371]
[1732943566107,0.02733733,3643.5,3643.1,1.371]
[1732943566419,0.55,3643.4,3643.1,1.371]
[1732943567506,0.55,3643.6,3643.1,1.371]
[1732943568706,0.55,3643.8,3643.3,2.74475]
[1732943569349,0.55,3643.8,3643.1,1.371]
[1732943569511,0.55,3643.8,3643.3,2.7447]
[1732943569842,0.55,3643.8,3643.1,4.11589]
[1732943570244,0.55,3643.8,3643.3,2.74473]
[1732943571298,3.88432833,3645.0,3643.6,1.5851]
[1732943571547,0.25527382,3644.9,3644.7,2.74364]
[1732943571721,1.14082833,3645.6,3644.4,2.74391]
[1732943571722,2.99831724,3645.6,3644.4,2.74391]
[1732943571919,0.57925381,3645.9,3644.2,1.5851]
[1732943571920,0.28530862,3645.5,3644.2,1.5851]
[1732943572254,2.74306,3645.6,3644.3,2.74401]
[1732943572414,11.22847346,3646.2,3644.1,1.5851]
[1732943572615,2.74309,3645.6,3644.8,2.74358]
[1732943572837,0.02733733,3645.5,3644.8,2.74358]
[1732943573248,0.02733733,3645.5,3644.9,2.74355]
[1732943573552,0.27704273,3645.5,3645.0,2.74347]
[1732943573711,0.27704273,3645.5,3644.8,1.5851]
[1732943573916,0.27704273,3645.5,3644.9,2.74355]
[1732943574156,0.27704273,3645.5,3643.5,2.13994915]
[1732943574157,3.29321,3645.4,3643.5,2.13994915]
[1732943574454,0.55,3645.1,3644.5,2.7438]
[1732943574752,11.98,3645.7,3644.3,1.5851]
[1732943574753,0.55,3644.9,3644.3,1.5851]
[1732943575049,0.55,3644.9,3644.4,2.7439]
[1732943575920,0.55,3644.9,3644.3,4.32911]
[1732943576142,0.55,3644.9,3644.3,2.74401]
[1732943576332,3.29356,3644.9,3644.3,2.74401]
[1732943576532,0.55,3644.7,3644.3,2.74401]
[1732943578550,0.55,3644.7,3644.4,2.74392]
[1732943578757,0.55,3644.9,3644.2,2.74405]
[1732943578999,0.55,3644.8,3644.2,2.74405]
[1732943579380,0.55,3644.8,3644.1,2.74414]
[1732943579582,0.55,3644.8,3644.1,5.48828]
[1732943579905,0.55,3644.8,3644.2,2.74406]
[1732943580488,0.57733733,3644.8,3644.2,2.74406]
[1732943580692,0.55,3645.0,3644.4,2.74393]
[1732943580894,0.55,3645.0,3644.1,2.74415]
[1732943580895,0.55,3645.0,3644.5,2.74384]
[1732943581094,11.72312,3645.5,3644.7,2.7437]
[1732943581299,2.74323,3645.4,3644.7,2.7437]
[1732943581603,2.74336,3645.2,3644.5,2.74385]
[1732943581769,0.02733733,3645.1,3644.5,2.74385]
[1732943581969,0.02733733,3645.3,3644.5,2.74385]
[1732943582297,0.55,3645.3,3644.7,2.74369]
[1732943582731,0.55,3645.3,3644.8,2.74359]
[1732943582882,0.55,3645.3,3644.7,4.32879]
[1732943583083,0.55,3645.3,3644.8,2.7436]
[1732943584176,0.57733733,3645.2,3644.6,2.74374]
[1732943584706,0.57733733,3645.2,3644.7,2.74369]
[1732943585548,0.02733733,3645.2,3645.1,2.7434]
[1732943585673,2.74263,3646.2,3645.5,2.74309]
[1732943586097,0.14290708,3646.6,3645.2,1.5575]
[1732943586420,2.74245,3646.4,3645.7,2.74295]
[1732943586715,3.016765,3646.3,3645.7,2.74295]
[1732943587214,0.02733733,3646.2,3645.6,2.74303]
[1732943587390,0.57733733,3646.2,3645.6,2.74303]
[1732943587591,0.57733733,3646.2,3645.4,2.74314]
[1732943587592,3.31991733,3646.2,3645.4,2.74314]
[1732943588416,3.31991733,3646.2,3645.2,4.30082]
[1732943588417,3.31991733,3646.2,3645.5,2.74309]
[1732943588575,0.57733733,3646.2,3645.6,2.74302]
[1732943589177,0.55,3646.2,3645.6,2.74302]
[1732943589523,0.57733733,3646.1,3645.5,2.74308]
[1732943590015,0.57733733,3646.1,3645.3,2.74324]
[1732943590225,0.55,3645.8,3645.3,2.74324]
[1732943590520,0.57733733,3645.8,3645.1,2.74338]
[1732943591018,0.57733733,3645.8,3645.0,2.74344]
[1732943591192,0.57733733,3645.8,3645.2,2.74329]
[1732943591722,0.57733733,3645.8,3645.3,2.74324]
[1732943594375,0.55,3645.8,3645.3,2.74324]
[1732943594606,0.02733733,3645.7,3645.3,2.74324]
[1732943594799,0.55,3645.8,3645.3,2.74324]
[1732943595000,8.98,3646.5,3645.3,2.74324]
[1732943595001,8.98,3646.5,3645.6,2.74298]
[1732943595200,2.74256,3646.3,3645.6,2.74298]
[1732943595429,0.02733733,3646.2,3645.4,1.5203]
[1732943595725,3.14534238,3647.0,3645.4,1.5203]
[1732943595726,3.0,3647.0,3645.4,1.5203]
[1732943596020,0.02733733,3646.9,3646.0,2.7427]
[1732943596229,2.99697785,3646.9,3646.0,2.7427]
[1732943596381,2.74228,3646.6,3646.0,2.7427]
[1732943596577,0.02733733,3646.5,3646.0,2.7427]
[1732943596789,2.76950733,3646.8,3646.0,2.7427]
[1732943596984,0.55,3646.7,3646.3,2.74247]
[1732943597213,0.25553826,3646.9,3646.1,4.26289]
[1732943597415,2.99759826,3646.9,3646.2,2.74252]
[1732943597834,2.74221,3646.7,3646.1,2.74259]
[1732943597988,2.74221,3646.7,3645.8,4.26312]
[1732943598332,2.74206,3646.9,3645.8,1.5203]
[1732943598492,0.55,3646.7,3646.1,2.74258]
[1732943599200,0.55,3646.7,3645.9,2.7428]
[1732943599407,0.55,3646.7,3646.1,2.74262]
[1732943599612,0.55,3646.7,3646.2,2.74257]
[1732943600734,0.55,3647.1,3646.4,2.74237]
[1732943600894,0.80583343,3647.1,3646.4,2.74237]
[1732943601216,0.55,3646.9,3646.4,2.74237]
[1732943601947,0.55,3647.0,3646.4,2.7424]
[1732943602096,0.55,3647.2,3646.4,2.7424]
[1732943602298,0.55,3646.9,3646.2,2.74256]
[1732943602697,0.55,3646.9,3646.4,2.74241]
[1732943602907,0.55,3646.9,3646.2,2.74256]
[1732943603130,3.54774409,3647.1,3646.5,2.74233]
[1732943603308,3.29196,3647.1,3646.5,2.74233]
[1732943603509,0.55,3646.9,3646.3,2.74246]
[1732943603757,2.74214,3646.8,3646.1,2.74261]
[1732943603936,0.55,3646.7,3646.0,2.74272]
[1732943604133,0.55,3646.7,3646.1,2.74265]
[1732943604405,0.55,3646.7,3646.5,2.74234]
[1732943606245,0.55,3646.7,3646.0,0.468933]
[1732943606246,2.74153,3647.6,3647.0,2.74195]
[1732943606429,2.74169,3647.4,3646.7,2.74213]
[1732943606628,11.08541291,3647.7,3646.2,1.6301]
[1732943606849,11.08541291,3647.7,3645.3,2.10541291]
[1732943606850,2.74213,3646.8,3646.1,2.7426]
[1732943607137,2.76946733,3646.8,3646.1,2.7426]
[1732943607704,0.55,3646.7,3645.8,1.6301]
[1732943607901,0.55,3646.4,3646.0,2.74272]
[1732943608337,0.55,3646.4,3645.8,1.6301]
[1732943608338,0.55,3646.3,3645.8,1.6301]
[1732943608544,0.55,3646.1,3645.5,2.74308]
[1732943608714,0.55,3646.1,3645.6,2.74302]
[1732943609130,0.55,3646.3,3645.7,2.74289]
[1732943609431,3.29251,3646.3,3645.6,2.74298]
[1732943609637,0.55,3646.1,3645.6,2.74298]
[1732943610132,0.55,3646.3,3645.5,2.7431]
[1732943610302,0.55,3646.0,3645.5,2.7431]
[1732943610509,0.55,3646.0,3645.6,2.74297]
[1732943610719,0.55,3646.2,3645.6,2.74297]
[1732943610937,0.80597245,3646.2,3645.6,2.74297]
[1732943611330,3.29259,3646.2,3645.6,2.74297]
[1732943611534,0.55,3646.0,3645.6,2.74297]
[1732943611938,0.55,3646.1,3645.6,2.74297]
[1732943612140,2.74286,3645.9,3645.2,2.74328]
[1732943612414,0.55,3645.8,3644.8,1.5062]
[1732943612651,0.55,3645.8,3645.2,2.7433]
[1732943613151,0.55,3645.8,3644.8,1.5062]
[1732943613152,0.55,3645.8,3645.3,2.74324]